bitfinex/quotes_SOLUSD_20220130
["timestamp","ask_amount","ask_price","bid_price","bid_amount"]
[1643546116975,1.4416749,96.417,96.338,0.25]
[1643546117778,1.4416749,96.423,96.347,6.0]
[1643546117980,0.2130788,96.435,96.36,1.42521732]
[1643546118376,0.2130788,96.435,96.37,6.0]
[1643546118581,0.2130788,96.435,96.371,6.0]
[1643546118780,0.0030788,96.435,96.372,104.3]
[1643546118979,0.0030788,96.435,96.381,104.3]
[1643546119179,0.5601189,96.505,96.382,6.0]
[1643546119393,0.4261576,96.435,96.392,62.54]
[1643546119580,0.5601189,96.505,96.403,62.54]
[1643546119783,0.5601189,96.505,96.404,0.25]
[1643546119980,0.5601189,96.505,96.414,62.54]
[1643546120382,0.5601189,96.505,96.425,104.3]
[1643546120582,31.2939,96.57,96.425,104.3]
[1643546120583,2.89451421,96.561,96.436,62.54]
[1643546120782,0.3,96.569,96.437,0.25]
[1643546120984,2.89451421,96.588,96.447,62.54]
[1643546121385,2.89451421,96.587,96.461,62.54]
[1643546121585,0.3,96.602,96.471,6.0]
[1643546121785,4.32238866,96.638,96.471,6.0]
[1643546121786,0.3,96.609,96.472,87.7438]
[1643546121986,0.1,96.609,96.472,93.7438]
[1643546122186,0.3,96.627,96.474,62.54]
[1643546122390,43.03177978,96.626,96.482,166.84]
[1643546122589,0.00112133,96.562,96.492,6.0]
[1643546122789,0.00112133,96.562,96.493,0.25]
[1643546122988,0.00112133,96.562,96.493,8.38718387]
[1643546123228,0.00112133,96.562,96.494,47.08752158]
[1643546123532,0.00112133,96.562,96.51,15.531]
[1643546123723,0.00112133,96.562,96.511,46.6947]
[1643546124124,0.00112133,96.562,96.436,15.5956]
[1643546124324,0.00112133,96.562,96.479,104.3]
[1643546124723,0.00112133,96.562,96.47,15.541]
[1643546124926,0.00112133,96.562,96.484,47.0443]
[1643546125122,0.00112133,96.562,96.484,47.2943]
[1643546128723,0.00112133,96.562,96.484,47.0443]
[1643546128926,2.95669142,96.561,96.484,47.0443]
[1643546129130,33.58554476,96.56,96.484,47.0443]
[1643546129325,0.3,96.559,96.484,47.0443]
[1643546129526,0.3,96.559,96.417,130.6885]
[1643546129825,0.3,96.559,96.457,6.0]
[1643546129826,15.55,96.55,96.457,6.0]
[1643546130029,0.3,96.549,96.436,6.0]
[1643546130225,0.3,96.549,96.427,47.1543]
[1643546130226,0.3,96.549,96.428,104.3]
[1643546130428,2.95669142,96.549,96.428,104.3]
[1643546130626,14.00669142,96.549,96.428,104.3]
[1643546130827,0.3,96.548,96.427,47.1543]
[1643546131232,15.551,96.54,96.427,47.1543]
[1643546131528,36.7635636,96.539,96.427,47.1543]
[1643546131734,0.3,96.538,96.437,6.0]
[1643546132128,0.3,96.538,96.438,8.39111622]
[1643546132330,0.3,96.538,96.439,0.25]
[1643546132537,0.3,96.538,96.44,15.545]
[1643546132828,0.3,96.538,96.441,0.25]
[1643546133031,0.3,96.538,96.441,2.39111622]
[1643546133429,0.3,96.538,96.442,2.14111622]
[1643546133629,0.3,96.538,96.441,0.25]
[1643546133829,0.3,96.538,96.44,104.3]
[1643546134030,0.3,96.538,96.442,2.14131964]
[1643546135133,0.3,96.538,96.44,104.3]
[1643546135330,0.3,96.538,96.441,0.25]
[1643546136231,0.3,96.538,96.442,2.14131964]
[1643546136631,0.3,96.538,96.443,0.25]
[1643546136832,0.3,96.538,96.441,0.25]
[1643546137032,3.25669142,96.538,96.441,0.25]
[1643546138233,0.3,96.538,96.442,2.14131964]
[1643546138633,0.3,96.538,96.443,0.25]
[1643546139236,2.95669142,96.537,96.443,0.25]
[1643546139434,2.95669142,96.537,96.439,22.9813]
[1643546140434,15.553,96.53,96.439,22.9813]
[1643546140634,15.553,96.53,96.44,106.44131964]
[1643546140635,0.3,96.529,96.44,106.44131964]
[1643546140835,0.3,96.529,96.44,106.69131964]
[1643546141034,0.3,96.529,96.44,2.39131964]
[1643546141235,3.25669142,96.529,96.44,0.25]
[1643546141436,2.95669142,96.529,96.44,0.25]
[1643546142236,45.42768918,96.519,96.44,0.25]
[1643546142536,0.3,96.518,96.44,0.25]
[1643546143236,0.3,96.518,96.44,104.55]
[1643546143836,0.3,96.518,96.441,2.14135652]
[1643546144436,0.3,96.518,96.442,0.25]
[1643546145036,0.3,96.539,96.451,6.0]
[1643546145235,0.3,96.559,96.452,23.9139]
[1643546145440,0.3,96.569,96.453,104.3]
[1643546145642,0.3,96.569,96.452,26.05525652]
[1643546145836,2.95669142,96.558,96.452,23.9139]
[1643546146037,15.552,96.54,96.453,104.3]
[1643546146239,34.22254336,96.539,96.453,104.3]
[1643546146536,0.3,96.538,96.453,106.44135652]
[1643546146736,0.3,96.538,96.453,104.3]
[1643546147537,0.3,96.538,96.454,0.25]
[1643546148138,0.3,96.538,96.453,104.3]
[1643546148337,0.3,96.538,96.454,0.25]
[1643546148938,0.3,96.538,96.453,104.3]
[1643546149140,0.3,96.538,96.454,0.25]
[1643546149344,0.3,96.538,96.455,2.14135652]
[1643546149539,0.3,96.538,96.465,6.0]
[1643546149739,0.3,96.538,96.466,22.7637]
[1643546149941,0.3,96.538,96.466,23.0137]
[1643546150839,0.3,96.538,96.467,104.3]
[1643546151239,0.3,96.538,96.468,0.25]
[1643546151840,0.3,96.568,96.468,23.9963]
[1643546152839,35.80636988,96.568,96.469,104.3]
[1643546153038,0.3,96.567,96.469,104.3]
[1643546153247,0.3,96.567,96.47,0.25]
[1643546157869,0.3,96.567,96.471,2.1313819]
[1643546158274,0.3,96.567,96.472,0.25]
[1643546158674,0.3,96.567,96.473,2.1313819]
[1643546158874,0.3,96.567,96.474,0.25]
[1643546159273,0.3,96.567,96.475,2.1313819]
[1643546159673,0.3,96.567,96.476,0.25]
[1643546159877,0.3,96.567,96.474,0.25]
[1643546160882,0.3,96.567,96.469,0.25]
[1643546161082,24.9071,96.567,96.469,0.25]
[1643546161277,0.3,96.566,96.469,0.25]
[1643546161677,0.3,96.566,96.468,23.7463]
[1643546161877,15.548,96.56,96.468,23.7463]
[1643546162076,0.3,96.559,96.468,23.7463]
[1643546162679,0.3,96.559,96.469,104.3]
[1643546162881,0.3,96.559,96.469,104.55]
[1643546163279,0.3,96.566,96.469,104.55]
[1643546164279,0.3,96.566,96.47,2.1313819]
[1643546164679,0.3,96.566,96.471,0.25]
[1643546165282,0.3,96.566,96.472,2.1313819]
[1643546165684,0.3,96.566,96.473,0.25]
[1643546166087,0.3,96.566,96.474,2.1313819]
[1643546166284,0.3,96.567,96.48,104.3]
[1643546166684,0.3,96.567,96.481,0.25]
[1643546167084,0.3,96.567,96.481,24.9811]
[1643546167285,0.3,96.567,96.482,104.3]
[1643546167785,0.3,96.567,96.483,0.25]
[1643546168389,0.3,96.567,96.483,2.3813819]
[1643546168593,0.3,96.567,96.483,0.25]
[1643546168985,0.3,96.567,96.483,2.3813819]
[1643546169689,0.3,96.567,96.481,24.7311]
[1643546169890,0.3,96.567,96.465,104.3]
[1643546170090,2.95669142,96.561,96.465,104.3]
[1643546170787,2.95669142,96.561,96.466,23.615]
[1643546170986,15.548,96.56,96.466,23.615]
[1643546171189,0.3,96.559,96.455,104.3]
[1643546171386,3.25669142,96.559,96.455,104.3]
[1643546171591,0.3,96.559,96.455,104.3]
[1643546171890,2.95669142,96.558,96.455,104.3]
[1643546172291,2.95669142,96.558,96.474,2.173816]
[1643546173086,42.59850088,96.539,96.474,2.173816]
[1643546173287,0.3,96.538,96.474,2.173816]
[1643546178998,15.553,96.53,96.474,2.173816]
[1643546179193,0.3,96.529,96.474,2.173816]
[1643546180694,0.3,96.538,96.475,0.25]
[1643546180894,2.89451421,96.58,96.484,6.0]
[1643546181094,2.89451421,96.587,96.475,0.25]
[1643546181497,2.34586394,96.588,96.475,0.25]
[1643546181498,7.60028226,96.586,96.475,0.25]
[1643546181694,15.546,96.57,96.475,0.25]
[1643546181896,33.17309028,96.569,96.475,0.25]
[1643546182096,0.3,96.568,96.475,0.25]
[1643546182595,0.3,96.568,96.452,0.25]
[1643546182798,0.3,96.568,96.462,104.3]
[1643546183218,0.3,96.568,96.464,104.3]
[1643546183397,0.3,96.568,96.465,0.25]
[1643546183596,0.3,96.568,96.465,2.37995704]
[1643546184000,0.3,96.568,96.466,2.12995704]
[1643546184197,0.3,96.568,96.465,0.25]
[1643546184497,104.6,96.568,96.465,0.25]
[1643546184696,5.00353805,96.567,96.464,0.25]
[1643546184896,2.34653624,96.566,96.464,104.55]
[1643546185096,4.70353805,96.565,96.464,0.25]
[1643546185296,15.548,96.56,96.464,104.55]
[1643546185497,0.3,96.559,96.464,104.55]
[1643546186300,0.3,96.559,96.464,0.25]
[1643546186906,36.84944718,96.549,96.464,0.25]
[1643546187106,0.3,96.548,96.464,0.25]
[1643546190410,0.3,96.548,96.464,104.55]
[1643546191236,0.3,96.548,96.464,0.25]
[1643546191436,15.552,96.54,96.464,0.25]
[1643546191639,0.3,96.539,96.464,0.25]
[1643546191836,0.3,96.539,96.464,104.55]
[1643546192038,0.3,96.548,96.464,0.25]
[1643546192841,2.95669142,96.547,96.436,0.25]
[1643546193340,2.95669142,96.547,96.429,0.25]
[1643546193542,2.95669142,96.547,96.429,104.55]
[1643546194144,15.551,96.54,96.429,104.55]
[1643546194341,0.3,96.539,96.43,2.12995704]
[1643546194542,3.25669142,96.539,96.43,2.12995704]
[1643546194741,2.95669142,96.538,96.431,0.25]
[1643546195346,0.3,96.539,96.432,2.12995704]
[1643546195543,39.8061386,96.549,96.432,2.12995704]
[1643546195544,0.3,96.548,96.442,6.0]
[1643546195743,0.3,96.548,96.443,24.5709]
[1643546195946,0.3,96.548,96.444,104.3]
[1643546196344,0.3,96.548,96.445,0.25]
[1643546198246,0.3,96.548,96.446,2.12995704]
[1643546198653,0.3,96.548,96.447,0.25]
[1643546198848,0.3,96.548,96.445,0.25]
[1643546199446,15.551,96.54,96.445,0.25]
[1643546199650,0.3,96.539,96.445,0.25]
[1643546200747,0.3,96.548,96.445,0.25]
[1643546202448,0.3,96.548,96.446,2.12995704]
[1643546202650,0.3,96.548,96.456,6.0]
[1643546202949,0.3,96.548,96.457,104.55]
[1643546203150,0.00112133,96.562,96.467,6.0]
[1643546203349,0.00112133,96.562,96.468,0.25]
[1643546203552,0.00112133,96.562,96.468,112.67995704]
[1643546203749,0.00112133,96.562,96.469,2.12995704]
[1643546203949,0.00112133,96.562,96.471,104.3]
[1643546204151,0.00112133,96.562,96.48,104.3]
[1643546204355,0.00112133,96.562,96.481,0.25]
[1643546204551,0.00112133,96.562,96.483,104.3]
[1643546204853,0.00112133,96.562,96.484,0.25]
[1643546205052,0.00112133,96.562,96.485,104.3]
[1643546205453,0.00112133,96.562,96.486,0.25]
[1643546205659,0.00112133,96.562,96.495,6.0]
[1643546205855,0.00112133,96.562,96.496,0.25]
[1643546206053,0.00112133,96.562,96.496,6.25]
[1643546206253,0.00112133,96.562,96.497,106.42995704]
[1643546206454,0.00112133,96.562,96.5,104.3]
[1643546206655,0.00112133,96.562,96.507,6.0]
[1643546206861,0.00112133,96.562,96.51,6.0]
[1643546207054,0.00112133,96.562,96.511,104.3]
[1643546207255,0.00112133,96.562,96.511,104.55]
[1643546208055,0.00112133,96.562,96.508,47.0241]
[1643546208259,0.00112133,96.562,96.474,16.20068045]
[1643546208454,0.00112133,96.562,96.489,0.25]
[1643546209057,34.75378873,96.56,96.489,0.25]
[1643546209255,0.3,96.559,96.489,0.25]
[1643546209677,0.3,96.559,96.472,48.5058]
[1643546211079,2.95669142,96.558,96.472,48.5058]
[1643546211280,0.3,96.559,96.472,48.5058]
[1643546211982,15.549,96.55,96.472,48.5058]
[1643546212280,0.3,96.549,96.473,0.25]
[1643546213081,0.3,96.549,96.472,48.5058]
[1643546213484,2.95669142,96.548,96.472,48.5058]
[1643546213684,15.551,96.54,96.472,48.5058]
[1643546213883,46.82719479,96.539,96.472,48.5058]
[1643546214084,0.3,96.538,96.472,48.5058]
[1643546215487,0.3,96.538,96.473,0.25]
[1643546215887,0.3,96.538,96.472,48.5058]
[1643546217692,0.3,96.538,96.473,0.25]
[1643546218492,0.3,96.538,96.472,48.5058]
[1643546218693,0.3,96.538,96.473,0.25]
[1643546219494,0.3,96.538,96.472,48.5058]
[1643546220798,0.3,96.538,96.473,0.25]
[1643546221900,0.3,96.538,96.472,48.5058]
[1643546223097,0.3,96.538,96.442,104.3]
[1643546223299,0.3,96.538,96.423,2.88684192]
[1643546223498,2.95669142,96.537,96.424,23.8823]
[1643546223698,21.78628123,96.537,96.424,23.8823]
[1643546223897,0.3,96.536,96.424,23.8823]
[1643546224102,131.06418565,96.536,96.424,23.8823]
[1643546224299,0.3,96.535,96.424,23.8823]
[1643546224497,26.76418565,96.535,96.424,23.8823]
[1643546224698,3.25669142,96.534,96.424,23.8823]
[1643546224901,21.78628123,96.534,96.425,24.6845]
[1643546225098,15.553,96.53,96.425,24.6845]
[1643546225398,0.3,96.529,96.425,24.6845]
[1643546225699,3.25669142,96.529,96.425,24.6845]
[1643546225898,2.95669142,96.528,96.425,24.6845]
[1643546226099,2.95669142,96.528,96.425,24.4345]
[1643546226900,2.95669142,96.528,96.426,104.3]
[1643546227100,15.555,96.52,96.425,24.4345]
[1643546227301,39.36232745,96.519,96.425,24.4345]
[1643546227502,0.3,96.518,96.425,24.4345]
[1643546227699,0.3,96.518,96.426,0.25]
[1643546228700,0.3,96.518,96.426,104.55]
[1643546229501,0.3,96.518,96.428,0.39464498]
[1643546232904,0.3,96.559,96.428,0.39464498]
[1643546233103,0.3,96.559,96.436,6.0]
[1643546233305,2.95669142,96.588,96.437,48.5934]
[1643546233503,2.95669142,96.588,96.447,6.0]
[1643546233801,2.95669142,96.588,96.451,104.3]
[1643546233802,39.08446438,96.587,96.451,104.3]
[1643546234004,0.3,96.586,96.461,6.0]
[1643546234203,5.00619005,96.586,96.462,47.49]
[1643546234405,5.00619005,96.586,96.463,104.3]
[1643546234606,4.70619005,96.585,96.463,104.3]
[1643546234803,4.70619005,96.585,96.464,0.25]
[1643546235006,15.545,96.58,96.464,0.25]
[1643546235207,0.3,96.579,96.464,0.25]
[1643546236005,0.3,96.579,96.473,6.0]
[1643546236208,0.3,96.586,96.475,104.3]
[1643546236508,0.3,96.607,96.485,6.0]
[1643546236808,0.3,96.607,96.49,15.539]
[1643546237009,0.3,96.607,96.491,104.3]
[1643546237207,37.77901921,96.607,96.491,104.55]
[1643546237408,0.3,96.606,96.491,104.55]
[1643546237609,0.3,96.606,96.501,6.0]
[1643546237811,0.3,96.606,96.477,22.7655]
[1643546237812,0.3,96.606,96.47,15.541]
[1643546238008,2.95669142,96.598,96.477,48.8673]
[1643546238208,43.28498286,96.582,96.477,48.8673]
[1643546238409,0.3,96.581,96.478,0.25]
[1643546238609,15.545,96.58,96.478,0.25]
[1643546238809,0.3,96.579,96.478,0.25]
[1643546239310,1.43653157,96.577,96.478,0.25]
[1643546239610,0.3,96.579,96.479,0.39055895]
[1643546240515,1.43653157,96.575,96.479,0.39055895]
[1643546240711,2.95669142,96.561,96.479,0.39055895]
[1643546240911,39.11184943,96.56,96.479,0.39055895]
[1643546241210,3.25669142,96.559,96.479,0.39055895]
[1643546242016,0.3,96.559,96.479,0.39055895]
[1643546242413,1.73653157,96.58,96.479,0.39055895]
[1643546242612,0.3,96.58,96.479,0.39055895]
[1643546242812,1.43653157,96.577,96.479,0.39055895]
[1643546243017,1.43653157,96.573,96.479,0.39055895]
[1643546243258,42.01382006,96.572,96.479,0.39055895]
[1643546243415,0.3,96.571,96.479,0.39055895]
[1643546244418,0.3,96.571,96.466,0.6403988]
[1643546244618,0.3,96.571,96.466,104.9403988]
[1643546245018,0.3,96.571,96.476,6.0]
[1643546245217,0.3,96.571,96.477,23.2656]
[1643546245417,0.3,96.571,96.478,0.25]
[1643546245621,15.547,96.57,96.478,0.25]
[1643546245818,0.3,96.569,96.478,0.25]
[1643546246317,0.3,96.569,96.477,23.2656]
[1643546247923,0.3,96.571,96.478,104.3]
[1643546248324,0.3,96.571,96.479,0.25]
[1643546248923,0.3,96.571,96.477,23.2656]
[1643546248924,0.3,96.571,96.478,0.25]
[1643546249323,0.3,96.571,96.48,0.39047887]
[1643546254048,15.546,96.57,96.48,0.39047887]
[1643546254250,0.3,96.569,96.48,0.39047887]
[1643546254447,0.3,96.569,96.458,25.80966974]
[1643546254847,0.3,96.571,96.459,1.42275101]
[1643546255051,0.3,96.571,96.47,15.541]
[1643546255351,0.3,96.571,96.471,127.128]
[1643546255651,1.43653157,96.594,96.481,6.0]
[1643546255851,1.43653157,96.598,96.482,104.55]
[1643546256150,1.73653157,96.599,96.482,104.55]
[1643546256348,1.43653157,96.591,96.483,24.9226]
[1643546256750,1.43653157,96.591,96.484,0.25]
[1643546256948,1.43653157,96.588,96.484,0.25]
[1643546257448,1.43653157,96.588,96.484,104.55]
[1643546258050,0.3,96.597,96.484,104.55]
[1643546258051,45.96189848,96.583,96.484,104.55]
[1643546258352,0.3,96.582,96.484,104.55]
[1643546259353,1.43653157,96.581,96.486,0.38999846]
[1643546260051,1.43653157,96.578,96.486,0.38999846]
[1643546261057,1.43653157,96.576,96.486,0.38999846]
[1643546261358,1.43653157,96.577,96.486,0.38999846]
[1643546261754,1.43653157,96.576,96.486,0.38999846]
[1643546261955,1.43653157,96.577,96.486,0.38999846]
[1643546262355,15.546,96.57,96.486,0.38999846]
[1643546262557,0.3,96.569,96.486,0.38999846]
[1643546262957,1.43653157,96.573,96.486,0.38999846]
[1643546264457,1.43653157,96.573,96.478,0.63983833]
[1643546264657,1.43653157,96.572,96.478,0.63983833]
[1643546265057,1.43653157,96.571,96.478,0.38983833]
[1643546265258,15.546,96.57,96.478,0.38983833]
[1643546265459,0.3,96.569,96.478,0.38983833]
[1643546267762,39.50937118,96.568,96.478,0.38983833]
[1643546267961,0.3,96.567,96.478,0.38983833]
[1643546268163,15.548,96.56,96.478,0.38983833]
[1643546268361,0.3,96.559,96.478,0.63983833]
[1643546269369,0.3,96.559,96.48,0.39047887]
[1643546272971,1.43653157,96.561,96.48,0.39047887]
[1643546273176,0.00112133,96.562,96.481,1.42275101]
[1643546273370,0.00112133,96.562,96.482,0.25]
[1643546274376,0.00112133,96.562,96.482,0.64031873]
[1643546274973,0.00112133,96.562,96.482,0.39031873]
[1643546277905,104.3,96.559,96.482,0.39031873]
[1643546278101,0.3,96.558,96.482,0.39031873]
[1643546278298,1.73653157,96.558,96.482,0.39031873]
[1643546278898,1.43653157,96.559,96.482,0.39031873]
[1643546279102,0.00112133,96.562,96.482,0.39031873]
[1643546279502,0.00112133,96.562,96.478,1.42275101]
[1643546279702,0.00112133,96.562,96.479,0.25]
[1643546279902,0.00112133,96.562,96.477,0.25]
[1643546280203,0.00112133,96.562,96.477,1.67275101]
[1643546280604,0.00112133,96.562,96.478,1.42275101]
[1643546280903,0.00112133,96.562,96.479,0.25]
[1643546282704,0.00112133,96.562,96.479,1.67275101]
[1643546282906,0.9376529,96.566,96.48,0.25]
[1643546283105,0.3,96.567,96.483,1.42275101]
[1643546283305,0.3,96.567,96.484,0.25]
[1643546283907,15.548,96.56,96.484,0.25]
[1643546284109,0.3,96.559,96.484,0.25]
[1643546284505,0.3,96.559,96.475,0.14007852]
[1643546288611,0.3,96.566,96.475,0.14007852]
[1643546289514,0.3,96.567,96.475,0.14007852]
[1643546290814,0.3,96.567,96.475,104.44007852]
[1643546291016,0.3,96.567,96.475,0.14007852]
[1643546291418,0.3,96.567,96.475,104.44007852]
[1643546294728,0.3,96.567,96.475,0.14007852]
[1643546295126,0.3,96.567,96.474,23.4211]
[1643546296930,0.3,96.567,96.475,0.25]
[1643546297531,0.3,96.567,96.484,6.0]
[1643546297929,15.6378,96.618,96.485,25.07735704]
[1643546297930,0.3,96.599,96.485,25.07735704]
[1643546298131,0.3,96.599,96.495,6.0]
[1643546298431,0.3,96.599,96.496,104.55]
[1643546298629,0.3,96.599,96.506,6.0]
[1643546298830,42.02624104,96.599,96.507,0.25]
[1643546299030,0.3,96.598,96.507,6.25]
[1643546299430,0.3,96.598,96.509,104.3]
[1643546299830,0.3,96.598,96.51,0.25]
[1643546302939,0.3,96.598,96.508,47.9855]
[1643546303264,2.95669142,96.597,96.508,47.9855]
[1643546303663,104.3,96.589,96.508,23.5694]
[1643546303866,0.3,96.588,96.508,23.5694]
[1643546304064,0.3,96.588,96.451,2.88684192]
[1643546304065,3.25669142,96.588,96.451,2.88684192]
[1643546304264,3.25669142,96.588,96.452,0.25]
[1643546304466,7.68456549,96.587,96.453,3.40028322]
[1643546304668,7.98456549,96.587,96.453,3.40028322]
[1643546304866,15.547,96.57,96.454,18.44610898]
[1643546305068,42.04489042,96.568,96.454,18.44610898]
[1643546305265,0.3,96.567,96.455,18.19610898]
[1643546305468,3.25669142,96.567,96.455,18.19610898]
[1643546305667,3.25669142,96.567,96.424,2.88684192]
[1643546305867,9.99950595,96.566,96.424,2.88684192]
[1643546306066,15.548,96.56,96.408,2.88684192]
[1643546306266,51.845,96.55,96.408,2.88684192]
[1643546306466,0.3,96.549,96.409,2.88684192]
[1643546306666,0.3,96.549,96.409,21.47484236]
[1643546306866,20.49739234,96.549,96.41,3.40180659]
[1643546307069,20.49739234,96.548,96.411,24.515]
[1643546307268,35.65919753,96.519,96.412,0.25]
[1643546307467,0.3,96.518,96.412,18.32303577]
[1643546307767,3.25669142,96.518,96.412,0.25]
[1643546308468,15.557,96.51,96.411,24.515]
[1643546308668,0.2,96.509,96.411,24.515]
[1643546308867,2.95669142,96.517,96.412,2.12995704]
[1643546309166,2.95669142,96.517,96.411,24.515]
[1643546309766,2.95669142,96.517,96.412,0.25]
[1643546310368,15.556,96.51,96.412,0.25]
[1643546310576,0.2,96.509,96.412,0.25]
[1643546310773,3.15669142,96.509,96.379,2.88684192]
[1643546310969,2.95669142,96.509,96.379,2.88684192]
[1643546311169,2.95669142,96.508,96.387,18.07472823]
[1643546311969,15.563,96.48,96.388,50.36605704]
[1643546312170,33.74462505,96.479,96.388,50.61605704]
[1643546312371,0.1,96.478,96.389,18.07472823]
[1643546312771,0.1,96.478,96.39,0.25]
[1643546313872,0.1,96.478,96.389,0.25]
[1643546314674,0.1,96.478,96.389,104.55]
[1643546315575,0.1,96.478,96.39,2.12995704]
[1643546315775,0.1,96.478,96.391,0.25]
[1643546315976,15.563,96.47,96.391,0.25]
[1643546316175,25.803,96.47,96.388,48.2361]
[1643546316375,28.75969142,96.47,96.349,24.61009726]
[1643546316576,28.75969142,96.47,96.362,2.12995704]
[1643546316976,28.75969142,96.47,96.35,30.2124402]
[1643546317183,28.75969142,96.47,96.35,24.695]
[1643546317376,28.75969142,96.47,96.351,0.25]
[1643546317585,28.75969142,96.47,96.35,24.695]
[1643546317777,28.75969142,96.47,96.341,16.67458451]
[1643546317977,28.85969142,96.47,96.341,16.67458451]
[1643546318177,28.75969142,96.47,96.341,16.67458451]
[1643546318377,28.75969142,96.47,96.342,23.7985]
[1643546318578,28.85969142,96.47,96.342,25.92494742]
[1643546318778,28.85969142,96.47,96.343,2.37644742]
[1643546318978,28.85969142,96.47,96.343,106.67644742]
[1643546319178,15.563,96.47,96.353,6.0]
[1643546319482,0.1,96.477,96.354,24.0485]
[1643546319678,0.1,96.478,96.355,104.3]
[1643546319878,0.1,96.478,96.356,0.25]
[1643546320085,0.1,96.478,96.365,6.0]
[1643546320279,0.1,96.478,96.366,104.55]
[1643546320479,0.1,96.478,96.366,106.67644742]
[1643546320678,0.1,96.478,96.376,6.0]
[1643546320879,0.1,96.478,96.377,0.25]
[1643546321678,2.95669142,96.477,96.377,0.25]
[1643546322079,2.95669142,96.477,96.355,0.25]
[1643546322280,2.95669142,96.477,96.35,6.0]
[1643546322281,2.95669142,96.477,96.351,0.25]
[1643546322883,15.562,96.47,96.351,104.55]
[1643546323281,2.95669142,96.469,96.351,104.55]
[1643546323481,2.95669142,96.469,96.361,6.0]
[1643546323781,0.1,96.477,96.362,0.25]
[1643546324785,2.95669142,96.476,96.362,0.25]
[1643546324986,2.95669142,96.476,96.352,0.25]
[1643546325789,15.563,96.47,96.352,0.25]
[1643546326187,2.95669142,96.469,96.352,0.25]
[1643546326391,107.25669142,96.469,96.352,0.25]
[1643546326892,2.95669142,96.468,96.352,0.25]
[1643546328091,41.14178677,96.449,96.338,104.55]
[1643546328294,41.14178677,96.449,96.34,104.3]
[1643546328691,41.14178677,96.449,96.341,0.25]
[1643546329092,41.14178677,96.449,96.34,106.42658183]
[1643546330323,41.14178677,96.449,96.35,6.0]
[1643546330522,41.14178677,96.449,96.351,23.892]
[1643546331122,41.14178677,96.449,96.361,6.0]
[1643546331321,41.14178677,96.449,96.362,24.0929]
[1643546331722,41.14178677,96.449,96.363,0.25]
[1643546332928,41.14178677,96.449,96.363,104.55]
[1643546333124,41.14178677,96.449,96.363,0.25]
[1643546333728,2.95669142,96.448,96.363,0.25]
[1643546335131,2.95669142,96.448,96.342,0.25]
[1643546335441,2.95669142,96.448,96.343,3.40652836]
[1643546335629,2.95669142,96.448,96.341,3.40652836]
[1643546335830,15.567,96.44,96.342,0.25]
[1643546336031,15.567,96.44,96.343,3.40652836]
[1643546336631,41.14178677,96.449,96.343,3.40652836]
[1643546336632,2.95669142,96.439,96.343,3.40652836]
[1643546336830,2.95669142,96.439,96.34,22.6299]
[1643546337031,15.571,96.42,96.34,22.6299]
[1643546337232,121.54070092,96.448,96.34,22.6299]
[1643546337432,17.24070092,96.448,96.341,3.38552026]
[1643546337833,17.24070092,96.448,96.342,0.25]